Workbook

Sheet Scenario Tool
C3: Project Name | I3: Scenario Name
AB5: A
C6: Scenario | D6: Description | G6: Runoff Vol | H6: Vol Reduction | I6: Goal | J6: % Complete | L6: Design Rainfall Depth | AB6: B
C7: Baseline | H7: =G38 -> 0 | I7: - | J7: - | L7: 0 | AB7: C
C8: Scenario #1 | H8: =H7 -> 0 | I8: =IF(L10>0,((G8-G7)*43560*7.5/L10),0) -> 0 | J8: =IF(G8="","",H7/(G8-G7)) ->  | AB8: D
C9: Scenario #2 | H9: =H8 -> 0 | I9: =IF(L10>0,((G9-G7)*43560*7.5/L10),0) -> 0 | J9: =IF(G9="","",H8/(G9-G7)) ->  | L9: Watershed Area
C10: Scenario #3 | H10: =H9 -> 0 | I10: =IF(L10>0,((G10-G7)*43560*7.5/L10),0) -> 0 | L10: 0
C12: Structural BMP Details | J12: Non Structural BMP Details
C13: BMP Type | D13: Soil Type | E13: # | F13: Avg Storage Volume | G13: Total Volume Reduction | H13: Est Cost | L13: Volume Reduction | M13: Estimated Cost
G14: =IF(C14="","",ROUND(F14*E14*VLOOKUP(C14,Volume,AB15),0)) ->  | H14: =IF(C14="","",E14*F14*VLOOKUP(C14,Costs,2)) ->  | J14: Downspout Disconnection
J15: Over A & B Soils: | M15: =(K16+K19)*VLOOKUP("Downspout Disconnection",Costs,2) -> 0 | P15: DCIA | AB15: =IF(D14="A",2,IF(D14="B",3,IF(D14="C",4,IF(D14="D",5,0)))) -> 0
J16: # of Downspouts | K16: 0 | L16: =ROUND(S17*VLOOKUP("Downspout Disconnection",Volume,2),0) -> 0 | P16: CN | Q16: S | R16: Q* | S16: Vol (cf) | AB16: 0
J17: Avg Roof Area per DS | K17: 0 | P17: 98 | Q17: =(1000/P17)-10 -> 0.2040816327 | R17: =((L7-0.2*Q17)^2)/(L7+0.8*Q17) -> 0.01020408163 | S17: =(R17/12)*(K16*K17) -> 0 | AB17: 0
J18: Over C & D Soils: | P18: 98 | Q18: =(1000/P18)-10 -> 0.2040816327 | R18: =R17 -> 0.01020408163 | S18: =(R18/12)*(K19*K20) -> 0 | AB18: 0
J19: # of Downspouts | K19: 0 | L19: =ROUND(S18*VLOOKUP("downspout disconnection",Volume,4),0) -> 0 | AB19: 0
J20: Avg Roof Area per DS | K20: 0 | AB20: 0
AB21: 0
J22: Green Roof Conversions | AB22: 0
J23: Roof Area | K23: 0 | L23: =ROUND(P25,0) -> 0 | M23: =K23*VLOOKUP("Green Roof",Costs,2) -> 0 | P23: Green Roof | AB23: 0
P24: Vol Reduction | Q24: CN | R24: S | S24: Q* | T24: Vol (cf) | AB24: 0
J25: Impervious Area Removal | P25: =T26-T25 -> 0 | Q25: 85 | R25: =(1000/Q25)-10 -> 1.764705882 | S25: =((L7-0.2*R25)^2)/(L7+0.8*R25) -> 0.08823529412 | T25: =(S25/12)*K23 -> 0 | AB25: 0
J26: Over A Soils | K26: 0 | L26: =ROUND(X29-T29,0) -> 0 | M26: =SUM(K26:K29)*VLOOKUP("Impervious area removal",Costs, 2) -> 0 | Q26: 98 | R26: =(1000/Q26)-10 -> 0.2040816327 | S26: =((L7-0.2*R26)^2)/(L7+0.8*R26) -> 0.01020408163 | T26: =(S26/12)*K23 -> 0 | AB26: 0
J27: Over B Soils | K27: 0 | L27: =ROUND(X30-T30,0) -> 0 | P27: Imp Area | AB27: 0
J28: Over C Soils | K28: 0 | L28: =ROUND(X31-T31,0) -> 0 | P28: Vol Reduction | Q28: CN | R28: S | S28: Q* | T28: Vol (cf) | U28: CN | V28: S | W28: Q* | X28: Vol (cf) | AB28: 0
J29: Over D Soils | K29: 0 | L29: =ROUND(X32-T32,0) -> 0 | P29: =X29-T29 -> 0 | Q29: 39 | R29: =(1000/Q29)-10 -> 15.64102564 | S29: =((L$7-0.2*R29)^2)/(L$7+0.8*R29) -> 0.7820512821 | T29: =(S29/12)*K26 -> 0 | U29: 98 | V29: =(1000/U29)-10 -> 0.2040816327 | W29: =((L$7-0.2*V29)^2)/(L$7+0.8*V29) -> 0.01020408163 | X29: =(W29/12)*K26 -> 0 | AB29: 0
P30: =X30-T30 -> 0 | Q30: 61 | R30: =(1000/Q30)-10 -> 6.393442623 | S30: =((L$7-0.2*R30)^2)/(L$7+0.8*R30) -> 0.3196721311 | T30: =(S30/12)*K27 -> 0 | U30: 98 | V30: =(1000/U30)-10 -> 0.2040816327 | W30: =((L$7-0.2*V30)^2)/(L$7+0.8*V30) -> 0.01020408163 | X30: =(W30/12)*K27 -> 0 | AB30: 0
J31: Stream Restoration | P31: =X31-T31 -> 0 | Q31: 74 | R31: =(1000/Q31)-10 -> 3.513513514 | S31: =((L$7-0.2*R31)^2)/(L$7+0.8*R31) -> 0.1756756757 | T31: =(S31/12)*K28 -> 0 | U31: 98 | V31: =(1000/U31)-10 -> 0.2040816327 | W31: =((L$7-0.2*V31)^2)/(L$7+0.8*V31) -> 0.01020408163 | X31: =(W31/12)*K28 -> 0 | AB31: 0
J32: New Floodplain Area | K32: 0 | L32: =ROUND(K32*0.2/12,0) -> 0 | M32: =K32*VLOOKUP("Stream Restoration",Costs,2) -> 0 | P32: =X32-T32 -> 0 | Q32: 80 | R32: =(1000/Q32)-10 -> 2.5 | S32: =((L$7-0.2*R32)^2)/(L$7+0.8*R32) -> 0.125 | T32: =(S32/12)*K29 -> 0 | U32: 98 | V32: =(1000/U32)-10 -> 0.2040816327 | W32: =((L$7-0.2*V32)^2)/(L$7+0.8*V32) -> 0.01020408163 | X32: =(W32/12)*K29 -> 0 | AB32: 0
AB33: 0
J34: Tree Planting
J35: # of Trees | K35: 0 | L35: =ROUND(K35*((K36/2)^2*3.14)*(0.1/12),0) -> 0 | M35: =K35*VLOOKUP("tree planting",Costs,2) -> 0
J36: Avg Canopy Diameter | K36: 0
C38: Total Volume Removed | E38: =SUM(G14:G36)+L16+L19+L23+SUM(L26:L29)+L32+L35 -> 0 | G38: =E38/43560 -> 0 | H38: =IF(E38>0,E38/L10,0) -> 0 | I38: =H38*7.5/43560 -> 0 | K38: Estimated Cost = | M38: =M26+M23+M15+SUM(H14:H36)+M32+M35 -> 0

Sheet References
C3: Project Name | D3: ='Scenario Tool'!D3 -> 0
C6: BMP Volume Reduction Credits
C7: Soil Type | D7: A | E7: B | F7: C | G7: D
C8: Bioretention | D8: 1.49 | E8: 1.12 | F8: 0.97 | G8: 0.9
C9: Bioretention w/ IWS | D9: 1.9 | E9: 1.7 | F9: 1.33 | G9: 1.09
C10: Blue Roof | D10: 0.05 | E10: 0.05 | F10: 0.05 | G10: 0.05
C11: Closed Sand Filter | D11: 0.1 | E11: 0.1 | F11: 0.1 | G11: 0.1
C12: Constructed Wetland | D12: 0.25 | E12: 0.2 | F12: 0.15 | G12: 0.1
C13: Downspout Disconnection | D13: 0.5 | E13: =D13 -> 0.5 | F13: 0.35 | G13: =F13 -> 0.35
C14: Dry Detention | D14: 0.2 | E14: 0.1 | F14: 0.05 | G14: 0
C15: Grass Swale | D15: 0.4 | E15: 0.3 | F15: 0.1 | G15: 0.05
C16: Infiltration Device | D16: 1.5 | E16: 1.4 | F16: 1.3 | G16: 1.2
C17: Open Sand Filter | D17: 0.3 | E17: 0.2 | F17: 0.2 | G17: 0.15
C18: Permeable Pavement (Detention)* | D18: 0.2 | E18: 0.2 | F18: 0.2 | G18: 0.2
C19: Permeable Pavement (Infiltration)* | D19: 1.5 | E19: 1.4 | F19: 1.3 | G19: 1.2
C20: Rainwater Harvesting | D20: 1 | E20: 1 | F20: 1 | G20: 1
C21: Wet Detention | D21: 0.15 | E21: 0.1 | F21: 0.05 | G21: 0.05
C22: ZZ User Defined
C23: ZZ User Defined
C24: ZZ User Defined
C25: ZZ User Defined
C27: Volume Reduction expressed as a percentage of available surface storage volume below overflow structure
C29: *Note: Storage Volume in gravel layer below pavement
C32: BMP Construction Cost Data
C33: Soil Type | D33: $ | E33: Unit
C34: Bioretention | D34: 0 | E34: cf
C35: Bioretention w/ IWS | D35: 0 | E35: cf
C36: Blue Roof | D36: 0 | E36: cf
C37: Closed Sand Filter | D37: 0 | E37: cf
C38: Constructed Wetland | D38: 0 | E38: cf
C39: Downspout Disconnection | D39: 0 | E39: ea
C40: Dry Detention | D40: 0 | E40: cf
C41: Engineered Filter Strip | D41: 0 | E41: ea
C42: Grass Swale | D42: 0 | E42: cf
C43: Green Roof | D43: 0 | E43: sf
C44: Impervious Area Removal | D44: 0 | E44: sf
C45: Infiltration Device | D45: 0 | E45: cf
C46: Open Sand Filter | D46: 0 | E46: cf
C47: Permeable Pavement (Detention) | D47: 0 | E47: cf
C48: Permeable Pavement (Infiltration) | D48: 0 | E48: cf
C49: Rainwater Harvesting | D49: 0 | E49: cf
C50: Stream Restoration | D50: 0 | E50: sf
C51: Tree Planting | D51: 0 | E51: ea
C52: Wet Detention | D52: 0 | E52: cf
C53: ZZ User Defined | D53: 0
C54: ZZ User Defined | D54: 0
C55: ZZ User Defined | D55: 0
C56: ZZ User Defined | D56: 0
